[Event "Early-Titled-Tuesday-Blitz-February-06-2024"]
[Site "Chess.com"]
[Date "2024.02.06"]
[Round "2"]
[White "Bodnar_Mykola"]
[Black "tylityli"]
[Result "1-0"]
[WhiteElo "2482"]
[BlackElo "2252"]
[TimeControl "180+1"]
[EndTime "8:18:18 PST"]
[Termination "Bodnar_Mykola won on time"]

1. e4 {[%clk 0:03:00.9]} 1... e5 {[%clk 0:02:59.1]} 2. Nf3 {[%clk 0:02:59.9]}
2... Nc6 {[%clk 0:02:58.6]} 3. Bb5 {[%clk 0:02:59.9]} 3... a6 {[%clk 0:02:58.5]}
4. Bxc6 {[%clk 0:02:58.8]} 4... dxc6 {[%clk 0:02:58.5]} 5. d4 {[%clk 0:02:59.5]}
5... exd4 {[%clk 0:02:58.2]} 6. Qxd4 {[%clk 0:03:00.4]} 6... Qxd4 {[%clk
0:02:56.3]} 7. Nxd4 {[%clk 0:03:01.3]} 7... Bd7 {[%clk 0:02:56.8]} 8. Bf4 {[%clk
0:02:57.7]} 8... O-O-O {[%clk 0:02:57]} 9. Nc3 {[%clk 0:02:54.8]} 9... f6 {[%clk
0:02:49.6]} 10. O-O-O {[%clk 0:02:51.8]} 10... Bd6 {[%clk 0:02:47.1]} 11. Bxd6
{[%clk 0:02:50.6]} 11... cxd6 {[%clk 0:02:47]} 12. f4 {[%clk 0:02:45.6]} 12...
Nh6 {[%clk 0:02:41.2]} 13. h3 {[%clk 0:02:43.9]} 13... Kc7 {[%clk 0:02:28.1]}
14. a4 {[%clk 0:02:43]} 14... b5 {[%clk 0:02:25.6]} 15. axb5 {[%clk 0:02:40.1]}
15... axb5 {[%clk 0:02:26.5]} 16. Nf3 {[%clk 0:02:36.6]} 16... Nf7 {[%clk
0:02:21]} 17. b3 {[%clk 0:02:30.4]} 17... Rhe8 {[%clk 0:02:19.2]} 18. Rhe1
{[%clk 0:02:30.1]} 18... Ra8 {[%clk 0:02:14.1]} 19. Kb2 {[%clk 0:02:29.5]} 19...
b4 {[%clk 0:02:09.6]} 20. Nb1 {[%clk 0:02:21.4]} 20... c5 {[%clk 0:02:07]} 21.
Nbd2 {[%clk 0:02:21.8]} 21... Bb5 {[%clk 0:02:06.5]} 22. g3 {[%clk 0:02:10.1]}
22... Rad8 {[%clk 0:01:58.3]} 23. Nc4 {[%clk 0:02:03.3]} 23... Bc6 {[%clk
0:01:34.5]} 24. Nfd2 {[%clk 0:01:52]} 24... h5 {[%clk 0:01:30.5]} 25. Ra1 {[%clk
0:01:46]} 25... Ra8 {[%clk 0:01:29.1]} 26. Rxa8 {[%clk 0:01:45]} 26... Rxa8
{[%clk 0:01:30]} 27. Re3 {[%clk 0:01:28.4]} 27... Re8 {[%clk 0:01:28.2]} 28. c3
{[%clk 0:01:26.1]} 28... bxc3+ {[%clk 0:01:11]} 29. Kxc3 {[%clk 0:01:27]} 29...
Ra8 {[%clk 0:01:10.5]} 30. e5 {[%clk 0:01:24.6]} 30... d5 {[%clk 0:01:06]} 31.
Kb2 {[%clk 0:01:19.5]} 31... dxc4 {[%clk 0:01:04.7]} 32. Nxc4 {[%clk 0:01:20.4]}
32... fxe5 {[%clk 0:01:00.5]} 33. fxe5 {[%clk 0:01:21.3]} 33... Re8 {[%clk
0:00:58.3]} 34. e6 {[%clk 0:01:15.8]} 34... Nd6 {[%clk 0:00:57.1]} 35. Kc3
{[%clk 0:01:06.9]} 35... Nxc4 {[%clk 0:00:53.2]} 36. Kxc4 {[%clk 0:01:07.8]}
36... Kd6 {[%clk 0:00:52.7]} 37. Rd3+ {[%clk 0:01:06.4]} 37... Kxe6 {[%clk
0:00:47.9]} 38. Kxc5 {[%clk 0:01:05.7]} 38... Rc8 {[%clk 0:00:40.4]} 39. Rd6+
{[%clk 0:01:05.2]} 39... Ke5 {[%clk 0:00:40.2]} 40. Rxc6 {[%clk 0:01:05.8]}
40... Rf8 {[%clk 0:00:39.6]} 41. b4 {[%clk 0:01:03.7]} 41... Rf3 {[%clk
0:00:37.9]} 42. Rg6 {[%clk 0:01:04.3]} 42... Rc3+ {[%clk 0:00:34.4]} 43. Kb6
{[%clk 0:01:03.4]} 43... h4 {[%clk 0:00:30.1]} 44. gxh4 {[%clk 0:01:00.1]} 44...
Rxh3 {[%clk 0:00:30.2]} 45. b5 {[%clk 0:00:59.8]} 45... Rxh4 {[%clk 0:00:28.9]}
46. Rxg7 {[%clk 0:01:00.4]} 46... Kd5 {[%clk 0:00:28.3]} 47. Kb7 {[%clk
0:00:59.4]} 47... Kc5 {[%clk 0:00:24]} 48. b6 {[%clk 0:00:59.5]} 48... Rb4
{[%clk 0:00:21.1]} 49. Rg5+ {[%clk 0:00:59.4]} 49... Kd6 {[%clk 0:00:21.6]} 50.
Rg1 {[%clk 0:00:58.1]} 50... Kc5 {[%clk 0:00:20.3]} 51. Rc1+ {[%clk 0:00:57.8]}
51... Kd6 {[%clk 0:00:20.1]} 52. Ka7 {[%clk 0:00:57.3]} 52... Kd7 {[%clk
0:00:15.7]} 53. b7 {[%clk 0:00:53.8]} 53... Ra4+ {[%clk 0:00:15.2]} 54. Kb8
{[%clk 0:00:52.5]} 54... Rb4 {[%clk 0:00:12.8]} 55. Rc3 {[%clk 0:00:50.4]} 55...
Rb2 {[%clk 0:00:12.2]} 56. Rc7+ {[%clk 0:00:48.8]} 56... Kd8 {[%clk 0:00:11.2]}
57. Rh7 {[%clk 0:00:46.2]} 57... Rb3 {[%clk 0:00:10.2]} 58. Rh4 {[%clk
0:00:45.7]} 58... Kd7 {[%clk 0:00:09.3]} 59. Rd4+ {[%clk 0:00:46.3]} 59... Kc6
{[%clk 0:00:09]} 60. Rc4+ {[%clk 0:00:46.8]} 60... Kd7 {[%clk 0:00:08.4]} 61.
Ka7 {[%clk 0:00:46.7]} 61... Ra3+ {[%clk 0:00:07.8]} 62. Kb8 {[%clk 0:00:46.8]}
62... Rb3 {[%clk 0:00:08]} 63. Rc2 {[%clk 0:00:45.5]} 63... Rb4 {[%clk
0:00:05.5]} 64. Ka7 {[%clk 0:00:44.1]} 64... Ra4+ {[%clk 0:00:05.1]} 65. Kb6
{[%clk 0:00:44.7]} 65... Rb4+ {[%clk 0:00:05.5]} 66. Ka6 {[%clk 0:00:45.3]}
66... Kd6 {[%clk 0:00:02.7]} 67. Rc8 {[%clk 0:00:43.6]} 1-0

[Event "Early-Titled-Tuesday-Blitz-February-06-2024"]
[Site "Chess.com"]
[Date "2024.02.06"]
[Round "2"]
[White "kecalk"]
[Black "DDTerziev04"]
[Result "1-0"]
[WhiteElo "2507"]
[BlackElo "2301"]
[TimeControl "180+1"]
[EndTime "8:18:19 PST"]
[Termination "kecalk won by resignation"]

1. e4 {[%clk 0:03:00.9]} 1... d6 {[%clk 0:02:58.1]} 2. d4 {[%clk 0:03:00.8]}
2... Nf6 {[%clk 0:02:58.2]} 3. Nc3 {[%clk 0:03:01.4]} 3... g6 {[%clk 0:02:58.2]}
4. Be3 {[%clk 0:03:01.3]} 4... Bg7 {[%clk 0:02:58.4]} 5. f3 {[%clk 0:03:01.6]}
5... O-O {[%clk 0:02:58.8]} 6. Qd2 {[%clk 0:03:02.1]} 6... c6 {[%clk 0:02:59.2]}
7. O-O-O {[%clk 0:03:02]} 7... Qc7 {[%clk 0:02:58.8]} 8. g4 {[%clk 0:02:58.8]}
8... b5 {[%clk 0:02:58.8]} 9. h4 {[%clk 0:02:51.8]} 9... a5 {[%clk 0:02:58.5]}
10. h5 {[%clk 0:02:50.9]} 10... a4 {[%clk 0:02:54]} 11. Bh6 {[%clk 0:02:32.5]}
11... e5 {[%clk 0:02:34.4]} 12. dxe5 {[%clk 0:02:24.6]} 12... dxe5 {[%clk
0:02:33.6]} 13. Nge2 {[%clk 0:01:54.8]} 13... Be6 {[%clk 0:02:30.7]} 14. Ng3
{[%clk 0:01:49.6]} 14... Na6 {[%clk 0:02:25.2]} 15. Nf5 {[%clk 0:01:25.4]} 15...
Bxf5 {[%clk 0:01:34.1]} 16. Bxg7 {[%clk 0:01:23.9]} 16... Kxg7 {[%clk
0:01:26.8]} 17. gxf5 {[%clk 0:01:24.2]} 17... Rad8 {[%clk 0:01:19.4]} 18. Bd3
{[%clk 0:01:20.6]} 18... Nb4 {[%clk 0:00:38.1]} 19. Rdg1 {[%clk 0:01:10.2]}
19... Rg8 {[%clk 0:00:16.7]} 20. hxg6 {[%clk 0:00:42.9]} 20... fxg6 {[%clk
0:00:16.4]} 21. Qg5 {[%clk 0:00:23.3]} 21... Qe7 {[%clk 0:00:12.5]} 22. fxg6
{[%clk 0:00:20.8]} 22... hxg6 {[%clk 0:00:09.5]} 23. Qxg6+ {[%clk 0:00:18.7]}
23... Kf8 {[%clk 0:00:10]} 24. Qh6+ {[%clk 0:00:17.4]} 24... Kf7 {[%clk
0:00:06.5]} 25. Be2 {[%clk 0:00:08.9]} 25... Rxg1+ {[%clk 0:00:04.5]} 26. Rxg1
{[%clk 0:00:08.8]} 26... Rg8 {[%clk 0:00:05.1]} 27. Rxg8 {[%clk 0:00:05]} 27...
Kxg8 {[%clk 0:00:04.8]} 28. a3 {[%clk 0:00:04.9]} 28... Na6 {[%clk 0:00:04]} 29.
Bf1 {[%clk 0:00:03.7]} 29... Nc5 {[%clk 0:00:03.6]} 30. Bh3 {[%clk 0:00:03.8]}
30... Qg7 {[%clk 0:00:03.4]} 31. Qxg7+ {[%clk 0:00:04]} 31... Kxg7 {[%clk
0:00:04.3]} 32. Ne2 {[%clk 0:00:02.9]} 32... Kh6 {[%clk 0:00:04.5]} 33. Ng3
{[%clk 0:00:02.1]} 33... Kg5 {[%clk 0:00:04.3]} 34. Ne2 {[%clk 0:00:02.6]} 34...
Kh4 {[%clk 0:00:04.3]} 35. Bc8 {[%clk 0:00:02.7]} 35... Kg5 {[%clk 0:00:04]} 36.
Kd2 {[%clk 0:00:03.2]} 36... Nh5 {[%clk 0:00:03.6]} 37. Kc3 {[%clk 0:00:03.2]}
37... Nf4 {[%clk 0:00:03.7]} 38. Nxf4 {[%clk 0:00:02.5]} 38... Kxf4 {[%clk
0:00:04.6]} 39. Bg4 {[%clk 0:00:03.2]} 39... Nb7 {[%clk 0:00:03.5]} 40. Kb4
{[%clk 0:00:02]} 40... Nd6 {[%clk 0:00:03.8]} 41. b3 {[%clk 0:00:02.1]} 41...
axb3 {[%clk 0:00:03.4]} 42. cxb3 {[%clk 0:00:03]} 42... Nxe4 {[%clk 0:00:03.5]}
43. fxe4 {[%clk 0:00:01.7]} 43... Kxg4 {[%clk 0:00:04.4]} 44. a4 {[%clk
0:00:02.4]} 44... bxa4 {[%clk 0:00:04]} 45. bxa4 {[%clk 0:00:03.3]} 45... Kf4
{[%clk 0:00:04.5]} 46. a5 {[%clk 0:00:03.9]} 46... Kxe4 {[%clk 0:00:04.5]} 47.
a6 {[%clk 0:00:04.8]} 47... Kd5 {[%clk 0:00:04.9]} 48. a7 {[%clk 0:00:05.7]}
48... c5+ {[%clk 0:00:05.5]} 49. Kb5 {[%clk 0:00:06]} 49... Kd4 {[%clk 0:00:06]}
50. a8=Q {[%clk 0:00:06.9]} 50... e4 {[%clk 0:00:06.5]} 51. Qd8+ {[%clk
0:00:06.8]} 51... Kc3 {[%clk 0:00:06.1]} 52. Qd1 {[%clk 0:00:06.5]} 52... e3
{[%clk 0:00:06.4]} 53. Kxc5 {[%clk 0:00:06.3]} 1-0

[Event "Early-Titled-Tuesday-Blitz-February-06-2024"]
[Site "Chess.com"]
[Date "2024.02.06"]
[Round "2"]
[White "vasblesk"]
[Black "Rdeux42"]
[Result "1-0"]
[WhiteElo "2752"]
[BlackElo "2438"]
[TimeControl "180+1"]
[EndTime "8:18:22 PST"]
[Termination "vasblesk won by resignation"]

1. d4 {[%clk 0:03:00.9]} 1... d5 {[%clk 0:02:59.6]} 2. c4 {[%clk 0:02:59.9]}
2... e6 {[%clk 0:02:59.9]} 3. Nf3 {[%clk 0:02:59.5]} 3... c6 {[%clk 0:03:00]} 4.
g3 {[%clk 0:02:57.5]} 4... dxc4 {[%clk 0:02:59.8]} 5. Bg2 {[%clk 0:02:58.1]}
5... b5 {[%clk 0:03:00.2]} 6. O-O {[%clk 0:02:58.1]} 6... Bb7 {[%clk 0:03:00.8]}
7. a4 {[%clk 0:02:50.2]} 7... Nd7 {[%clk 0:03:00.3]} 8. e4 {[%clk 0:02:47.3]}
8... Ngf6 {[%clk 0:02:59.3]} 9. Qe2 {[%clk 0:02:37.1]} 9... Be7 {[%clk
0:02:53.8]} 10. Nc3 {[%clk 0:02:31.5]} 10... b4 {[%clk 0:02:35.6]} 11. Nd1
{[%clk 0:02:30.1]} 11... a5 {[%clk 0:02:26.9]} 12. Re1 {[%clk 0:02:26.9]} 12...
Nb6 {[%clk 0:02:22.7]} 13. Bf4 {[%clk 0:02:19]} 13... O-O {[%clk 0:02:21.2]} 14.
Ne5 {[%clk 0:02:08.2]} 14... Nfd7 {[%clk 0:02:18.5]} 15. Nxc4 {[%clk 0:01:53]}
15... Ba6 {[%clk 0:02:17.7]} 16. b3 {[%clk 0:01:35.8]} 16... Nxc4 {[%clk
0:02:07.4]} 17. bxc4 {[%clk 0:01:36.7]} 17... e5 {[%clk 0:02:07.5]} 18. dxe5
{[%clk 0:01:26]} 18... g5 {[%clk 0:01:42.8]} 19. Be3 {[%clk 0:01:24.5]} 19...
Nxe5 {[%clk 0:01:43.1]} 20. Nb2 {[%clk 0:01:24.3]} 20... Qd7 {[%clk 0:01:25]}
21. f4 {[%clk 0:01:17.4]} 21... gxf4 {[%clk 0:01:23.3]} 22. gxf4 {[%clk
0:01:18.3]} 22... Ng4 {[%clk 0:01:18.7]} 23. Rad1 {[%clk 0:01:14.8]} 23... Qc8
{[%clk 0:01:17.3]} 24. Bh3 {[%clk 0:01:05.3]} 24... f5 {[%clk 0:01:16.3]} 25.
Bd4 {[%clk 0:01:02.8]} 25... Bh4 {[%clk 0:01:08]} 26. exf5 {[%clk 0:00:46.3]}
26... Nf6 {[%clk 0:00:42.2]} 27. Qe6+ {[%clk 0:00:09]} 27... Qxe6 {[%clk
0:00:29.6]} 28. fxe6 {[%clk 0:00:09.9]} 28... Bxe1 {[%clk 0:00:27.4]} 29. Rxe1
{[%clk 0:00:10.8]} 29... Rae8 {[%clk 0:00:12.1]} 30. e7 {[%clk 0:00:07.7]} 30...
Rf7 {[%clk 0:00:12.6]} 31. Be6 {[%clk 0:00:07.3]} 31... Bc8 {[%clk 0:00:07]} 32.
Bxf7+ {[%clk 0:00:07.2]} 32... Kxf7 {[%clk 0:00:06.8]} 33. Nd3 {[%clk
0:00:07.7]} 33... Rxe7 {[%clk 0:00:06.3]} 34. Rxe7+ {[%clk 0:00:05.1]} 34...
Kxe7 {[%clk 0:00:07.2]} 35. Bb6 {[%clk 0:00:05.5]} 35... Bf5 {[%clk 0:00:06.1]}
36. Nb2 {[%clk 0:00:05.4]} 36... Ne4 {[%clk 0:00:03.2]} 37. Bxa5 {[%clk
0:00:05.8]} 37... c5 {[%clk 0:00:02.6]} 38. Bc7 {[%clk 0:00:06.1]} 38... Kd7
{[%clk 0:00:02.4]} 39. Be5 {[%clk 0:00:06.4]} 39... Kc6 {[%clk 0:00:02.9]} 40.
Kg2 {[%clk 0:00:06.8]} 40... Nc3 {[%clk 0:00:03.2]} 41. Kf3 {[%clk 0:00:05.8]}
41... Bc2 {[%clk 0:00:03.4]} 42. a5 {[%clk 0:00:05.9]} 42... Kb7 {[%clk
0:00:03.6]} 43. Ke3 {[%clk 0:00:06]} 43... Ka6 {[%clk 0:00:04.5]} 44. Kd2 {[%clk
0:00:06.4]} 44... Kxa5 {[%clk 0:00:04.3]} 45. Bxc3 {[%clk 0:00:06.7]} 45...
bxc3+ {[%clk 0:00:04.3]} 46. Kxc3 {[%clk 0:00:06.7]} 46... Bf5 {[%clk
0:00:04.9]} 47. Nd3 {[%clk 0:00:05.9]} 47... Kb6 {[%clk 0:00:03.1]} 48. Ne5
{[%clk 0:00:06.4]} 48... Kc7 {[%clk 0:00:02.7]} 49. h4 {[%clk 0:00:07]} 49...
Kd6 {[%clk 0:00:03.2]} 50. Kd2 {[%clk 0:00:07.7]} 50... Ke6 {[%clk 0:00:02.8]}
51. Ke3 {[%clk 0:00:08.6]} 51... Kd6 {[%clk 0:00:03.3]} 52. Nf3 {[%clk
0:00:08.1]} 52... h5 {[%clk 0:00:03]} 53. Ng5 {[%clk 0:00:08.4]} 53... Ke7
{[%clk 0:00:02.6]} 54. Ne4 {[%clk 0:00:08.8]} 54... Bxe4 {[%clk 0:00:01.8]} 55.
Kxe4 {[%clk 0:00:09.7]} 55... Ke6 {[%clk 0:00:02.4]} 56. f5+ {[%clk 0:00:10.1]}
56... Kf6 {[%clk 0:00:03.3]} 57. Kf4 {[%clk 0:00:10.7]} 57... Kf7 {[%clk
0:00:03.9]} 58. Kg5 {[%clk 0:00:11.6]} 58... Kg7 {[%clk 0:00:04.4]} 59. Kxh5
{[%clk 0:00:12.5]} 59... Kf6 {[%clk 0:00:04.9]} 60. Kg4 {[%clk 0:00:13.2]} 1-0

[Event "Early-Titled-Tuesday-Blitz-February-06-2024"]
[Site "Chess.com"]
[Date "2024.02.06"]
[Round "2"]
[White "tptagain"]
[Black "JoachimBN"]
[Result "1-0"]
[WhiteElo "2933"]
[BlackElo "2619"]
[TimeControl "180+1"]
[EndTime "8:18:24 PST"]
[Termination "tptagain won on time"]

1. Nf3 {[%clk 0:03:00.9]} 1... b6 {[%clk 0:01:31.3]} 2. d4 {[%clk 0:02:59.5]}
2... Bb7 {[%clk 0:01:23]} 3. Bg5 {[%clk 0:02:58.9]} 3... Nf6 {[%clk 0:01:21.8]}
4. e3 {[%clk 0:02:58.2]} 4... g6 {[%clk 0:01:20.2]} 5. c4 {[%clk 0:02:56]} 5...
Bg7 {[%clk 0:01:20.6]} 6. Nc3 {[%clk 0:02:56.3]} 6... O-O {[%clk 0:01:20.3]} 7.
Be2 {[%clk 0:02:54.6]} 7... Ne4 {[%clk 0:01:20.2]} 8. Nxe4 {[%clk 0:02:54.7]}
8... Bxe4 {[%clk 0:01:21.1]} 9. O-O {[%clk 0:02:55]} 9... c5 {[%clk 0:01:21.1]}
10. Qd2 {[%clk 0:02:31.5]} 10... h6 {[%clk 0:01:09.2]} 11. Bh4 {[%clk
0:02:29.2]} 11... d6 {[%clk 0:01:09.4]} 12. d5 {[%clk 0:02:29.2]} 12... Bxf3
{[%clk 0:01:06.3]} 13. gxf3 {[%clk 0:02:27.3]} 13... Nd7 {[%clk 0:01:05.4]} 14.
Rab1 {[%clk 0:02:24.8]} 14... Nf6 {[%clk 0:01:00.1]} 15. Bd3 {[%clk 0:02:17.6]}
15... Qd7 {[%clk 0:01:00.3]} 16. Kg2 {[%clk 0:02:17.7]} 16... g5 {[%clk
0:01:00.3]} 17. Bg3 {[%clk 0:02:17.7]} 17... Nh5 {[%clk 0:01:01]} 18. Qe2 {[%clk
0:02:09.1]} 18... f5 {[%clk 0:01:00.2]} 19. f4 {[%clk 0:02:09.5]} 19... Nf6
{[%clk 0:00:49.4]} 20. Qc2 {[%clk 0:02:02.2]} 20... Nh5 {[%clk 0:00:47.4]} 21.
Qe2 {[%clk 0:01:57]} 21... Nf6 {[%clk 0:00:47]} 22. Rg1 {[%clk 0:01:47.1]} 22...
e5 {[%clk 0:00:44.9]} 23. fxe5 {[%clk 0:00:59]} 23... dxe5 {[%clk 0:00:45.8]}
24. Bxe5 {[%clk 0:00:59.4]} 24... Rae8 {[%clk 0:00:46.5]} 25. Bxf6 {[%clk
0:00:56.2]} 25... Rxf6 {[%clk 0:00:47.4]} 26. Kh1 {[%clk 0:00:49.5]} 26... Qd6
{[%clk 0:00:44.5]} 27. Qh5 {[%clk 0:00:45.5]} 27... Qe5 {[%clk 0:00:42.1]} 28.
b3 {[%clk 0:00:35.2]} 28... Re7 {[%clk 0:00:35.8]} 29. Rbd1 {[%clk 0:00:33.5]}
29... Rd6 {[%clk 0:00:31.7]} 30. h4 {[%clk 0:00:29.8]} 30... Bf6 {[%clk
0:00:21.2]} 31. Rg2 {[%clk 0:00:28.9]} 31... Rg7 {[%clk 0:00:19.4]} 32. hxg5
{[%clk 0:00:27.6]} 32... hxg5 {[%clk 0:00:18.8]} 33. Rh2 {[%clk 0:00:28.1]}
33... Rd8 {[%clk 0:00:14.2]} 34. Rg1 {[%clk 0:00:24.4]} 34... Kf8 {[%clk
0:00:14.1]} 35. Qh6 {[%clk 0:00:23.3]} 35... Ke7 {[%clk 0:00:13]} 36. Rh5 {[%clk
0:00:20.8]} 36... Rdg8 {[%clk 0:00:11.4]} 37. Rh2 {[%clk 0:00:20.2]} 37... Rg6
{[%clk 0:00:11.6]} 38. Qh7+ {[%clk 0:00:19.4]} 38... R8g7 {[%clk 0:00:10.8]} 39.
Qh5 {[%clk 0:00:19.4]} 39... Rg8 {[%clk 0:00:10.3]} 40. Kg2 {[%clk 0:00:18]}
40... Kd6 {[%clk 0:00:10.3]} 41. Kf1 {[%clk 0:00:17.8]} 41... R6g7 {[%clk
0:00:09.7]} 42. Qd1 {[%clk 0:00:17.4]} 42... f4 {[%clk 0:00:09.8]} 43. Rh6
{[%clk 0:00:16.9]} 43... fxe3 {[%clk 0:00:08.5]} 44. Qf3 {[%clk 0:00:17.5]}
44... Rf8 {[%clk 0:00:07.8]} 45. Qxe3 {[%clk 0:00:18]} 45... Qxe3 {[%clk
0:00:07.7]} 46. fxe3 {[%clk 0:00:18.9]} 46... Re7 {[%clk 0:00:07.2]} 47. Ke2
{[%clk 0:00:19.2]} 47... Kd7 {[%clk 0:00:04.6]} 48. Rf1 {[%clk 0:00:19.2]} 48...
Bg7 {[%clk 0:00:03.6]} 49. Rxf8 {[%clk 0:00:19.3]} 49... Bxf8 {[%clk 0:00:04.5]}
50. Bf5+ {[%clk 0:00:19.8]} 50... Kd8 {[%clk 0:00:04.3]} 51. Rh8 {[%clk
0:00:19.4]} 51... Rf7 {[%clk 0:00:04.4]} 52. Bg6 {[%clk 0:00:19.3]} 52... Rf6
{[%clk 0:00:04.7]} 53. e4 {[%clk 0:00:19.6]} 53... Ke7 {[%clk 0:00:04.9]} 54.
Bf5 {[%clk 0:00:19.3]} 54... Rh6 {[%clk 0:00:03.2]} 55. Rg8 {[%clk 0:00:18.7]}
55... Rh2+ {[%clk 0:00:02.8]} 56. Kf3 {[%clk 0:00:19]} 56... Rxa2 {[%clk
0:00:03.1]} 57. e5 {[%clk 0:00:19.5]} 57... Kf7 {[%clk 0:00:01.8]} 58. Be6+
{[%clk 0:00:19.5]} 58... Ke8 {[%clk 0:00:02.7]} 59. d6 {[%clk 0:00:19.5]} 59...
Rb2 {[%clk 0:00:03.3]} 60. Bd5 {[%clk 0:00:19.7]} 60... Rxb3+ {[%clk 0:00:00.9]}
61. Ke4 {[%clk 0:00:19.8]} 1-0

[Event "Early-Titled-Tuesday-Blitz-February-06-2024"]
[Site "Chess.com"]
[Date "2024.02.06"]
[Round "2"]
[White "jens1102"]
[Black "TigrVShlyape"]
[Result "0-1"]
[WhiteElo "2637"]
[BlackElo "2971"]
[TimeControl "180+1"]
[EndTime "8:18:25 PST"]
[Termination "TigrVShlyape won by resignation"]

1. c4 {[%clk 0:03:00.3]} 1... f5 {[%clk 0:02:52.2]} 2. g3 {[%clk 0:02:57.3]}
2... Nf6 {[%clk 0:02:51.7]} 3. Bg2 {[%clk 0:02:57.8]} 3... g6 {[%clk 0:02:46.1]}
4. Nc3 {[%clk 0:02:58.3]} 4... Bg7 {[%clk 0:02:45.9]} 5. d3 {[%clk 0:02:58.2]}
5... e5 {[%clk 0:02:44.9]} 6. b4 {[%clk 0:02:55.8]} 6... O-O {[%clk 0:02:38.6]}
7. Bb2 {[%clk 0:02:50.6]} 7... d6 {[%clk 0:02:35]} 8. Nf3 {[%clk 0:02:42.8]}
8... h6 {[%clk 0:02:28.8]} 9. O-O {[%clk 0:02:42.8]} 9... g5 {[%clk 0:02:28.1]}
10. Nd2 {[%clk 0:02:31.6]} 10... Nc6 {[%clk 0:02:22.2]} 11. b5 {[%clk
0:02:29.6]} 11... Ne7 {[%clk 0:02:19.1]} 12. a4 {[%clk 0:02:25.8]} 12... Rb8
{[%clk 0:02:10.9]} 13. a5 {[%clk 0:02:24.4]} 13... Be6 {[%clk 0:02:07.7]} 14. a6
{[%clk 0:02:15.8]} 14... b6 {[%clk 0:02:07]} 15. e4 {[%clk 0:01:38.8]} 15... f4
{[%clk 0:02:05.8]} 16. Nd5 {[%clk 0:01:39.1]} 16... Qd7 {[%clk 0:01:42]} 17. Nb1
{[%clk 0:01:30.4]} 17... Rf7 {[%clk 0:01:35.9]} 18. Nbc3 {[%clk 0:01:29]} 18...
Ng6 {[%clk 0:01:33.1]} 19. Nxf6+ {[%clk 0:01:25.5]} 19... Bxf6 {[%clk
0:01:32.4]} 20. Nd5 {[%clk 0:01:26.4]} 20... Bg7 {[%clk 0:01:16.3]} 21. d4
{[%clk 0:01:12.5]} 21... exd4 {[%clk 0:01:14.1]} 22. Bxd4 {[%clk 0:01:12.6]}
22... Rbf8 {[%clk 0:01:07.6]} 23. Bxg7 {[%clk 0:01:06.3]} 23... Rxg7 {[%clk
0:01:06.9]} 24. Qd4 {[%clk 0:00:57.9]} 24... f3 {[%clk 0:01:04.3]} 25. Bh1
{[%clk 0:00:49.2]} 25... Rgf7 {[%clk 0:01:01.6]} 26. Ra3 {[%clk 0:00:46.2]}
26... g4 {[%clk 0:01:00.5]} 27. Re1 {[%clk 0:00:43.5]} 27... Ne5 {[%clk
0:00:57.1]} 28. Rd1 {[%clk 0:00:22.4]} 28... Qd8 {[%clk 0:00:52.5]} 29. Ne3
{[%clk 0:00:18.9]} 29... Qf6 {[%clk 0:00:49.1]} 30. Nd5 {[%clk 0:00:16.4]} 30...
Qg7 {[%clk 0:00:43.9]} 31. Rc3 {[%clk 0:00:16.1]} 31... h5 {[%clk 0:00:40.2]}
32. Qe3 {[%clk 0:00:16.3]} 32... Bxd5 {[%clk 0:00:33.5]} 33. cxd5 {[%clk
0:00:14.9]} 33... Re7 {[%clk 0:00:30.7]} 34. Rdc1 {[%clk 0:00:15]} 34... Rff7
{[%clk 0:00:30.7]} 35. Qd4 {[%clk 0:00:13.6]} 35... Qg5 {[%clk 0:00:29]} 36. Qe3
{[%clk 0:00:12.8]} 36... Qxe3 {[%clk 0:00:28.3]} 37. Rxe3 {[%clk 0:00:13.7]}
37... Kg7 {[%clk 0:00:27.3]} 38. Rec3 {[%clk 0:00:14]} 38... Kg6 {[%clk
0:00:27.5]} 39. Kf1 {[%clk 0:00:14.5]} 39... h4 {[%clk 0:00:26.6]} 40. Kg1
{[%clk 0:00:14.6]} 40... Rh7 {[%clk 0:00:23.3]} 41. R1c2 {[%clk 0:00:14.4]}
41... Ref7 {[%clk 0:00:23.1]} 42. Rc1 {[%clk 0:00:14.8]} 42... Kg5 {[%clk
0:00:23]} 43. R1c2 {[%clk 0:00:15.3]} 43... h3 {[%clk 0:00:18.1]} 44. Kf1 {[%clk
0:00:15]} 44... Kf6 {[%clk 0:00:17.2]} 45. Ke1 {[%clk 0:00:15.4]} 45... Rd7
{[%clk 0:00:17.1]} 46. Kd2 {[%clk 0:00:15.5]} 46... Rhe7 {[%clk 0:00:16.6]} 47.
Ke3 {[%clk 0:00:15.5]} 47... Kg5 {[%clk 0:00:16.8]} 48. Rc1 {[%clk 0:00:15.3]}
48... Ng6 {[%clk 0:00:14.8]} 49. R1c2 {[%clk 0:00:14.9]} 49... Nf8 {[%clk
0:00:13.7]} 50. Rc1 {[%clk 0:00:15]} 50... Nh7 {[%clk 0:00:14]} 51. Kd4 {[%clk
0:00:15.2]} 51... Nf6 {[%clk 0:00:14]} 52. Re3 {[%clk 0:00:15.5]} 52... Re5
{[%clk 0:00:14.2]} 53. Rce1 {[%clk 0:00:15.3]} 53... Rde7 {[%clk 0:00:14.5]} 54.
Kd3 {[%clk 0:00:14.6]} 54... Nd7 {[%clk 0:00:14.6]} 55. Kd4 {[%clk 0:00:14.9]}
55... Nc5 {[%clk 0:00:14.9]} 56. Kc3 {[%clk 0:00:08]} 56... Rxe4 {[%clk
0:00:14.5]} 57. Rxe4 {[%clk 0:00:02.6]} 57... Rxe4 {[%clk 0:00:14.6]} 58. Rf1
{[%clk 0:00:03.2]} 58... Re2 {[%clk 0:00:14.2]} 59. Kd4 {[%clk 0:00:03.8]} 59...
Kf5 {[%clk 0:00:14.3]} 60. Kc4 {[%clk 0:00:04.3]} 60... Ke5 {[%clk 0:00:14.4]}
0-1